[Event "*** Titled Tuesday 3|2 Blitz"]
[Site "Chess.com"]
[Date "2015.08.04"]
[Round "6"]
[White "Bab3s"]
[Black "WanderingPuppet"]
[Result "1-0"]
[WhiteElo "2133"]
[BlackElo "2173"]
[TimeControl "180+2"]
[EndTime "12:49:33 PDT"]
[Termination "Bab3s won on time"]

1. e4 {[%clk 0:03:01.9]} 1... c5 {[%clk 0:03:00.1]} 2. c3 {[%clk 0:03:03]} 2...
d5 {[%clk 0:03:01]} 3. exd5 {[%clk 0:03:04.9]} 3... Nf6 {[%clk 0:03:02.5]} 4. d4
{[%clk 0:03:00.7]} 4... Nxd5 {[%clk 0:03:01.8]} 5. dxc5 {[%clk 0:02:58.9]} 5...
e6 {[%clk 0:03:00.6]} 6. Nf3 {[%clk 0:02:36]} 6... Bxc5 {[%clk 0:03:00]} 7. Be2
{[%clk 0:02:20.5]} 7... O-O {[%clk 0:02:58]} 8. O-O {[%clk 0:02:21.4]} 8... Nc6
{[%clk 0:02:58.8]} 9. Nbd2 {[%clk 0:02:22.2]} 9... b6 {[%clk 0:02:56.4]} 10. Ne4
{[%clk 0:02:12.3]} 10... Be7 {[%clk 0:02:55.9]} 11. a3 {[%clk 0:01:52.1]} 11...
Bb7 {[%clk 0:02:56.3]} 12. c4 {[%clk 0:01:50.8]} 12... Nf6 {[%clk 0:02:55.6]}
13. Nc3 {[%clk 0:01:48.3]} 13... Qb8 {[%clk 0:02:42.9]} 14. Bg5 {[%clk
0:01:44.3]} 14... h6 {[%clk 0:02:42.3]} 15. Bh4 {[%clk 0:01:45.3]} 15... Nh5
{[%clk 0:01:52.3]} 16. Bxe7 {[%clk 0:01:38.6]} 16... Nxe7 {[%clk 0:01:54.2]} 17.
Nd4 {[%clk 0:01:37.5]} 17... Nf4 {[%clk 0:01:34]} 18. Bf3 {[%clk 0:01:37.3]}
18... Rd8 {[%clk 0:01:34.4]} 19. Re1 {[%clk 0:00:31.8]} 19... Nf5 {[%clk
0:01:24.3]} 20. Ncb5 {[%clk 0:00:17.8]} 20... a6 {[%clk 0:01:09.6]} 21. Bxb7
{[%clk 0:00:17.6]} 21... Qxb7 {[%clk 0:01:08.3]} 22. Qg4 {[%clk 0:00:18.7]}
22... Ng6 {[%clk 0:00:35.6]} 23. Nxe6 {[%clk 0:00:12.5]} 23... fxe6 {[%clk
0:00:22.5]} 24. Rxe6 {[%clk 0:00:13.1]} 24... Nfh4 {[%clk 0:00:18.1]} 25. Nd6
{[%clk 0:00:11.1]} 25... Qd7 {[%clk 0:00:11.3]} 26. Rae1 {[%clk 0:00:08.5]}
26... Rab8 {[%clk 0:00:06]} 27. g3 {[%clk 0:00:07.7]} 27... Nf8 {[%clk
0:00:04.2]} 28. gxh4 {[%clk 0:00:04.6]} 28... Nxe6 {[%clk 0:00:05.1]} 29. Nf5
{[%clk 0:00:04.5]} 29... Nd4 {[%clk 0:00:03.8]} 30. Nxh6+ {[%clk 0:00:05.2]}
30... Kh8 {[%clk 0:00:04.4]} 31. Qg6 {[%clk 0:00:06]} 31... Nf3+ {[%clk
0:00:03.6]} 32. Kh1 {[%clk 0:00:06.1]} 32... Nxe1 {[%clk 0:00:04.2]} 33. Nf7+
{[%clk 0:00:07.4]} 33... Kg8 {[%clk 0:00:05.4]} 34. Ng5 {[%clk 0:00:08.5]} 34...
Qd6 {[%clk 0:00:03.2]} 35. Qf7+ {[%clk 0:00:08.3]} 35... Kh8 {[%clk 0:00:04.3]}
36. Qh5+ {[%clk 0:00:09.7]} 36... Kg8 {[%clk 0:00:04.5]} 37. Qf7+ {[%clk
0:00:10.9]} 37... Kh8 {[%clk 0:00:06.1]} 38. Qh5+ {[%clk 0:00:12.2]} 38... Qh6
{[%clk 0:00:06.2]} 39. Nf7+ {[%clk 0:00:13]} 39... Kh7 {[%clk 0:00:07.1]} 40.
Nxh6 {[%clk 0:00:14.9]} 40... gxh6 {[%clk 0:00:08.2]} 41. Qf5+ {[%clk
0:00:16.2]} 41... Kg7 {[%clk 0:00:09.2]} 42. Qg4+ {[%clk 0:00:17]} 42... Kf7
{[%clk 0:00:09.6]} 43. Qf4+ {[%clk 0:00:18.5]} 43... Kg7 {[%clk 0:00:10]} 44. h3
{[%clk 0:00:19.9]} 44... Nd3 {[%clk 0:00:10.4]} 45. Qg3+ {[%clk 0:00:20.7]}
45... Kh7 {[%clk 0:00:10.6]} 46. Qc7+ {[%clk 0:00:21.6]} 46... Kg8 {[%clk
0:00:11.8]} 47. b4 {[%clk 0:00:20]} 47... Rbc8 {[%clk 0:00:06]} 48. Qg3+ {[%clk
0:00:18.5]} 48... Kh7 {[%clk 0:00:06.4]} 49. Qe3 {[%clk 0:00:09.8]} 49... Rd7
{[%clk 0:00:04.1]} 50. Qe6 {[%clk 0:00:08.2]} 1-0

[Event "*** Titled Tuesday 3|2 Blitz"]
[Site "Chess.com"]
[Date "2015.08.04"]
[Round "6"]
[White "ajkom197"]
[Black "ER404"]
[Result "0-1"]
[WhiteElo "2244"]
[BlackElo "2090"]
[TimeControl "180+2"]
[EndTime "12:49:41 PDT"]
[Termination "ER404 won by checkmate"]

1. d4 {[%clk 0:03:01.9]} 1... d5 {[%clk 0:03:00.5]} 2. Bf4 {[%clk 0:03:01]} 2...
c5 {[%clk 0:03:00.5]} 3. e3 {[%clk 0:03:01.7]} 3... Nc6 {[%clk 0:03:00.3]} 4. c3
{[%clk 0:03:02.6]} 4... Nf6 {[%clk 0:02:59.2]} 5. Nf3 {[%clk 0:03:03.4]} 5...
Qb6 {[%clk 0:03:00.1]} 6. Qb3 {[%clk 0:03:01.3]} 6... c4 {[%clk 0:03:01.4]} 7.
Qxb6 {[%clk 0:03:01.9]} 7... axb6 {[%clk 0:03:02.3]} 8. Na3 {[%clk 0:02:56.3]}
8... Bf5 {[%clk 0:02:48.7]} 9. Be2 {[%clk 0:02:55.4]} 9... e6 {[%clk 0:02:41.9]}
10. Nb5 {[%clk 0:02:55.7]} 10... Kd7 {[%clk 0:02:42.8]} 11. Ne5+ {[%clk
0:02:28.7]} 11... Nxe5 {[%clk 0:02:42.2]} 12. dxe5 {[%clk 0:02:29.9]} 12... Ne4
{[%clk 0:02:36.5]} 13. O-O {[%clk 0:02:22.9]} 13... Ra5 {[%clk 0:02:35.1]} 14.
Nd4 {[%clk 0:02:23.1]} 14... Bg6 {[%clk 0:02:12.8]} 15. h3 {[%clk 0:02:09.7]}
15... Be7 {[%clk 0:02:08.7]} 16. Rfc1 {[%clk 0:02:05.1]} 16... Rha8 {[%clk
0:02:08.7]} 17. a3 {[%clk 0:02:05.3]} 17... b5 {[%clk 0:02:01.7]} 18. Rd1 {[%clk
0:01:29.2]} 18... Kc7 {[%clk 0:01:49.2]} 19. Rac1 {[%clk 0:01:28.2]} 19... Kb6
{[%clk 0:01:45.7]} 20. Nf3 {[%clk 0:01:25.6]} 20... h6 {[%clk 0:01:32.2]} 21.
Nd2 {[%clk 0:01:25.9]} 21... Nc5 {[%clk 0:01:28.2]} 22. Bg3 {[%clk 0:01:24.4]}
22... Na4 {[%clk 0:01:26.4]} 23. Rb1 {[%clk 0:01:24.9]} 23... Bxb1 {[%clk
0:01:26.4]} 24. Rxb1 {[%clk 0:01:26.8]} 24... Nc5 {[%clk 0:01:24.4]} 25. f3
{[%clk 0:01:23.8]} 25... Nd7 {[%clk 0:01:08.8]} 26. f4 {[%clk 0:01:22.1]} 26...
f6 {[%clk 0:01:02]} 27. exf6 {[%clk 0:01:21.5]} 27... Bxf6 {[%clk 0:00:50.6]}
28. Bf2 {[%clk 0:01:16.8]} 28... Kc6 {[%clk 0:00:47.9]} 29. e4 {[%clk
0:01:17.2]} 29... Nc5 {[%clk 0:00:46.5]} 30. exd5+ {[%clk 0:01:05.5]} 30... exd5
{[%clk 0:00:47.3]} 31. Nf3 {[%clk 0:01:06.6]} 31... Ne4 {[%clk 0:00:43.4]} 32.
Bd4 {[%clk 0:01:03.8]} 32... Bxd4+ {[%clk 0:00:31]} 33. Nxd4+ {[%clk 0:01:03.7]}
33... Kc5 {[%clk 0:00:26.3]} 34. Bf3 {[%clk 0:01:01.7]} 34... Nd2 {[%clk
0:00:25.9]} 35. Rd1 {[%clk 0:01:00.8]} 35... Nxf3+ {[%clk 0:00:22.3]} 36. Nxf3
{[%clk 0:01:02.7]} 36... Re8 {[%clk 0:00:22.6]} 37. Kf2 {[%clk 0:00:58.8]} 37...
Ra6 {[%clk 0:00:23.5]} 38. Ne5 {[%clk 0:00:56.2]} 38... Rae6 {[%clk 0:00:24.2]}
39. Kf3 {[%clk 0:00:54.2]} 39... g5 {[%clk 0:00:25.3]} 40. g3 {[%clk 0:00:54.4]}
40... gxf4 {[%clk 0:00:26.2]} 41. gxf4 {[%clk 0:00:56.3]} 41... Kd6 {[%clk
0:00:20.5]} 42. Rd2 {[%clk 0:00:50.8]} 42... b6 {[%clk 0:00:17.7]} 43. Rg2
{[%clk 0:00:49.5]} 43... Kc5 {[%clk 0:00:17.3]} 44. Rg7 {[%clk 0:00:47.1]} 44...
Rxe5 {[%clk 0:00:16]} 45. fxe5 {[%clk 0:00:46.4]} 45... Rxe5 {[%clk 0:00:17.9]}
46. Rg6 {[%clk 0:00:44.7]} 46... h5 {[%clk 0:00:18.3]} 47. h4 {[%clk 0:00:44.9]}
47... Re1 {[%clk 0:00:13.9]} 48. Rg5 {[%clk 0:00:45.5]} 48... Rb1 {[%clk
0:00:13.2]} 49. Rxh5 {[%clk 0:00:46.7]} 49... Rxb2 {[%clk 0:00:14.7]} 50. Rg5
{[%clk 0:00:47.9]} 50... Rb3 {[%clk 0:00:15.9]} 51. h5 {[%clk 0:00:48]} 51...
Rxc3+ {[%clk 0:00:15.5]} 52. Kg4 {[%clk 0:00:49.4]} 52... Rxa3 {[%clk
0:00:14.5]} 53. h6 {[%clk 0:00:50.5]} 53... Ra8 {[%clk 0:00:14.8]} 54. h7 {[%clk
0:00:51.2]} 54... Rh8 {[%clk 0:00:15.9]} 55. Rg7 {[%clk 0:00:52.8]} 55... b4
{[%clk 0:00:17]} 56. Kf3 {[%clk 0:00:54.4]} 56... b3 {[%clk 0:00:18.2]} 57. Ke2
{[%clk 0:00:56.1]} 57... Kb4 {[%clk 0:00:18.5]} 58. Kd2 {[%clk 0:00:56.7]} 58...
b5 {[%clk 0:00:19.8]} 59. Kc1 {[%clk 0:00:55]} 59... d4 {[%clk 0:00:20.8]} 60.
Kb2 {[%clk 0:00:54.2]} 60... d3 {[%clk 0:00:20.3]} 61. Rc7 {[%clk 0:00:53.2]}
61... d2 {[%clk 0:00:19.4]} 62. Rd7 {[%clk 0:00:52.4]} 62... Rxh7 {[%clk
0:00:17.3]} 63. Rxh7 {[%clk 0:00:53.1]} 63... d1=Q {[%clk 0:00:16.4]} 64. Rh2
{[%clk 0:00:55]} 64... c3# {[%clk 0:00:15.3]} 0-1

[Event "*** Titled Tuesday 3|2 Blitz"]
[Site "Chess.com"]
[Date "2015.08.04"]
[Round "6"]
[White "Janosik"]
[Black "arnacman"]
[Result "1-0"]
[WhiteElo "2521"]
[BlackElo "2244"]
[TimeControl "180+2"]
[EndTime "12:50:03 PDT"]
[Termination "Janosik won by resignation"]

1. Nf3 {[%clk 0:03:01.9]} 1... d5 {[%clk 0:02:57.7]} 2. c4 {[%clk 0:02:59.3]}
2... c6 {[%clk 0:02:57.6]} 3. d4 {[%clk 0:02:59.9]} 3... Nf6 {[%clk 0:02:58.2]}
4. e3 {[%clk 0:03:00.3]} 4... a6 {[%clk 0:02:58.5]} 5. Bd3 {[%clk 0:03:00.2]}
5... e6 {[%clk 0:02:47.7]} 6. Nbd2 {[%clk 0:03:01]} 6... c5 {[%clk 0:02:44.9]}
7. dxc5 {[%clk 0:03:01.2]} 7... Bxc5 {[%clk 0:02:45]} 8. O-O {[%clk 0:03:02.7]}
8... O-O {[%clk 0:02:45.2]} 9. cxd5 {[%clk 0:03:04.2]} 9... Qxd5 {[%clk
0:02:40.5]} 10. Qe2 {[%clk 0:03:01.8]} 10... Nbd7 {[%clk 0:02:31.5]} 11. e4
{[%clk 0:03:01.3]} 11... Qh5 {[%clk 0:02:28.9]} 12. h3 {[%clk 0:03:01.3]} 12...
b6 {[%clk 0:02:19.6]} 13. e5 {[%clk 0:03:00.3]} 13... Nd5 {[%clk 0:02:13.5]} 14.
Nb3 {[%clk 0:02:16]} 14... Be7 {[%clk 0:02:06.7]} 15. Bd2 {[%clk 0:02:07.5]}
15... Bb7 {[%clk 0:02:04]} 16. Rfe1 {[%clk 0:02:08.9]} 16... Nc5 {[%clk
0:02:01.6]} 17. Nxc5 {[%clk 0:02:08.8]} 17... Bxc5 {[%clk 0:02:02.2]} 18. Be4
{[%clk 0:02:06]} 18... b5 {[%clk 0:01:40.9]} 19. Rac1 {[%clk 0:02:05]} 19... Bb6
{[%clk 0:01:40.8]} 20. Kh2 {[%clk 0:01:59.4]} 20... f5 {[%clk 0:01:25.5]} 21.
exf6 {[%clk 0:01:54.1]} 21... Rxf6 {[%clk 0:01:25.2]} 22. g4 {[%clk 0:01:22.4]}
22... Qe8 {[%clk 0:01:20.4]} 23. Bg5 {[%clk 0:01:00.3]} 23... Rf7 {[%clk
0:01:06.7]} 24. Rcd1 {[%clk 0:00:53.9]} 24... Qf8 {[%clk 0:00:58]} 25. Rd3
{[%clk 0:00:40.4]} 25... Kh8 {[%clk 0:00:50.9]} 26. Rf1 {[%clk 0:00:33.7]} 26...
Rc8 {[%clk 0:00:48.9]} 27. a3 {[%clk 0:00:29.3]} 27... Rc4 {[%clk 0:00:47.8]}
28. Bxd5 {[%clk 0:00:19.1]} 28... Bxd5 {[%clk 0:00:49]} 29. Ne5 {[%clk
0:00:20.3]} 29... Re4 {[%clk 0:00:43.3]} 30. Nxf7+ {[%clk 0:00:20.3]} 30... Qxf7
{[%clk 0:00:43.7]} 31. Qf3 {[%clk 0:00:20.3]} 31... Bc7+ {[%clk 0:00:43.2]} 32.
Kg1 {[%clk 0:00:14.3]} 32... Rf4 {[%clk 0:00:26.2]} 33. Qe2 {[%clk 0:00:10.2]}
33... Rc4 {[%clk 0:00:24.3]} 34. f4 {[%clk 0:00:10.3]} 34... h6 {[%clk
0:00:22.8]} 35. Bh4 {[%clk 0:00:10.3]} 35... Qg6 {[%clk 0:00:19.2]} 36. Bg3
{[%clk 0:00:09.9]} 36... Qf6 {[%clk 0:00:18.4]} 37. Kh2 {[%clk 0:00:10.1]} 37...
Re4 {[%clk 0:00:18.5]} 38. Re3 {[%clk 0:00:11.3]} 38... Bc4 {[%clk 0:00:18]} 39.
Rxe4 {[%clk 0:00:11.6]} 39... Bxe2 {[%clk 0:00:18.3]} 40. Rxe2 {[%clk
0:00:13.5]} 40... g5 {[%clk 0:00:15.1]} 41. Ref2 {[%clk 0:00:14.8]} 41... gxf4
{[%clk 0:00:15.7]} 42. Bxf4 {[%clk 0:00:16.1]} 42... Bxf4+ {[%clk 0:00:16]} 43.
Rxf4 {[%clk 0:00:18]} 43... Qxb2+ {[%clk 0:00:16.6]} 44. R1f2 {[%clk 0:00:19.7]}
44... Qxa3 {[%clk 0:00:17.2]} 45. Rf8+ {[%clk 0:00:20.4]} 45... Kg7 {[%clk
0:00:18.1]} 46. R2f7+ {[%clk 0:00:21.6]} 46... Kg6 {[%clk 0:00:19]} 47. Rf6+
{[%clk 0:00:22.9]} 47... Kg5 {[%clk 0:00:16.4]} 48. Rf3 {[%clk 0:00:23.7]} 48...
Qd6+ {[%clk 0:00:16.1]} 49. Kg2 {[%clk 0:00:25.2]} 49... Qd2+ {[%clk 0:00:13.4]}
50. Kg3 {[%clk 0:00:25.1]} 50... Qd6+ {[%clk 0:00:13.6]} 51. R8f4 {[%clk
0:00:22.8]} 51... Kg6 {[%clk 0:00:10.4]} 52. h4 {[%clk 0:00:24.2]} 52... Qe7
{[%clk 0:00:10.4]} 53. h5+ {[%clk 0:00:23.5]} 53... Kg5 {[%clk 0:00:11.3]} 54.
Rf7 {[%clk 0:00:22.5]} 54... Qd6+ {[%clk 0:00:11.4]} 55. Kh3 {[%clk 0:00:23.4]}
55... Qd4 {[%clk 0:00:09.7]} 56. R3f5+ {[%clk 0:00:20.2]} 1-0

[Event "*** Titled Tuesday 3|2 Blitz"]
[Site "Chess.com"]
[Date "2015.08.04"]
[Round "6"]
[White "Beca95"]
[Black "Hikaru"]
[Result "1/2-1/2"]
[WhiteElo "2575"]
[BlackElo "2850"]
[TimeControl "180+2"]
[EndTime "12:52:43 PDT"]
[Termination "Game drawn by stalemate"]

1. e4 {[%clk 0:03:01.9]} 1... e5 {[%clk 0:03:01.5]} 2. Nf3 {[%clk 0:03:02]} 2...
Nc6 {[%clk 0:03:03]} 3. Be2 {[%clk 0:03:01]} 3... Nf6 {[%clk 0:03:03.6]} 4. d3
{[%clk 0:03:02.5]} 4... g6 {[%clk 0:03:03.5]} 5. O-O {[%clk 0:03:02.1]} 5... Bg7
{[%clk 0:03:05.1]} 6. Nbd2 {[%clk 0:03:02.8]} 6... O-O {[%clk 0:03:06.6]} 7. Re1
{[%clk 0:03:04.3]} 7... d5 {[%clk 0:03:07.8]} 8. Bf1 {[%clk 0:03:05.7]} 8... Re8
{[%clk 0:03:09.4]} 9. g3 {[%clk 0:03:05.4]} 9... d4 {[%clk 0:03:10]} 10. c3
{[%clk 0:03:06.3]} 10... dxc3 {[%clk 0:03:10.9]} 11. bxc3 {[%clk 0:03:08.2]}
11... b6 {[%clk 0:03:12.2]} 12. Qc2 {[%clk 0:03:08]} 12... a6 {[%clk 0:03:12.4]}
13. a4 {[%clk 0:03:08.5]} 13... Qd7 {[%clk 0:03:13]} 14. Nc4 {[%clk 0:03:08.2]}
14... Bb7 {[%clk 0:03:13.4]} 15. Ba3 {[%clk 0:03:04.1]} 15... b5 {[%clk
0:03:09.9]} 16. Ne3 {[%clk 0:03:04.3]} 16... Nd8 {[%clk 0:02:49.8]} 17. Rab1
{[%clk 0:03:00.4]} 17... Bc6 {[%clk 0:02:46.2]} 18. axb5 {[%clk 0:02:54.5]}
18... axb5 {[%clk 0:02:48.1]} 19. Bb4 {[%clk 0:02:55.8]} 19... Nb7 {[%clk
0:02:49.3]} 20. c4 {[%clk 0:02:50.8]} 20... Bh6 {[%clk 0:02:41.2]} 21. Nd5
{[%clk 0:02:49.7]} 21... Bxd5 {[%clk 0:02:34.2]} 22. cxd5 {[%clk 0:02:50.9]}
22... Bf8 {[%clk 0:02:35.7]} 23. Rec1 {[%clk 0:02:50]} 23... Bxb4 {[%clk
0:02:36.3]} 24. Rxb4 {[%clk 0:02:51.9]} 24... Rec8 {[%clk 0:02:34.8]} 25. Nxe5
{[%clk 0:02:49]} 25... Qe8 {[%clk 0:02:31.3]} 26. Nc6 {[%clk 0:02:49.6]} 26...
Nd6 {[%clk 0:02:31.9]} 27. Rbb1 {[%clk 0:02:49.7]} 27... Nd7 {[%clk 0:02:30.9]}
28. Bh3 {[%clk 0:02:49.9]} 28... Ra3 {[%clk 0:02:31.2]} 29. e5 {[%clk
0:02:37.6]} 29... Nf5 {[%clk 0:02:32.2]} 30. Bxf5 {[%clk 0:02:38]} 30... gxf5
{[%clk 0:02:34.1]} 31. d4 {[%clk 0:02:39.2]} 31... Nb6 {[%clk 0:02:31.1]} 32.
Qxf5 {[%clk 0:02:35.5]} 32... Nxd5 {[%clk 0:02:31]} 33. Rc5 {[%clk 0:02:36.2]}
33... Rca8 {[%clk 0:02:27.3]} 34. Rxd5 {[%clk 0:02:03.9]} 34... Qxc6 {[%clk
0:02:28.2]} 35. Rd7 {[%clk 0:02:01.3]} 35... Rf3 {[%clk 0:02:24.8]} 36. Qg4+
{[%clk 0:01:53.8]} 36... Kh8 {[%clk 0:02:26]} 37. d5 {[%clk 0:01:53.7]} 37...
Qc3 {[%clk 0:02:27.1]} 38. Rxc7 {[%clk 0:01:41.5]} 38... Qxc7 {[%clk 0:01:58.5]}
39. Qxf3 {[%clk 0:01:41.4]} 39... Qxe5 {[%clk 0:02:00.4]} 40. Rxb5 {[%clk
0:01:37.2]} 40... Kg7 {[%clk 0:01:59.8]} 41. Kg2 {[%clk 0:01:38.2]} 41... Ra6
{[%clk 0:01:58.4]} 42. Rb4 {[%clk 0:01:30.1]} 42... Rd6 {[%clk 0:01:41.8]} 43.
Qg4+ {[%clk 0:01:29]} 43... Kf8 {[%clk 0:01:42.9]} 44. Rb8+ {[%clk 0:01:27.1]}
44... Ke7 {[%clk 0:01:44.2]} 45. Qh4+ {[%clk 0:01:22.5]} 45... Rf6 {[%clk
0:01:45.5]} 46. Rb7+ {[%clk 0:01:16.9]} 46... Kf8 {[%clk 0:01:46.1]} 47. Rd7
{[%clk 0:00:43.3]} 47... Qf5 {[%clk 0:01:46.4]} 48. Qf4 {[%clk 0:00:29.9]} 48...
Qxf4 {[%clk 0:01:47.2]} 49. gxf4 {[%clk 0:00:31.8]} 49... Rxf4 {[%clk
0:01:48.2]} 50. Kg3 {[%clk 0:00:33]} 50... Rd4 {[%clk 0:01:49.3]} 51. f4 {[%clk
0:00:34.1]} 51... Kg7 {[%clk 0:01:47.4]} 52. Kg4 {[%clk 0:00:34.6]} 52... Kg6
{[%clk 0:01:47.4]} 53. Rd6+ {[%clk 0:00:35]} 53... f6 {[%clk 0:01:48.7]} 54. Rd7
{[%clk 0:00:36.2]} 54... h5+ {[%clk 0:01:50.3]} 55. Kf3 {[%clk 0:00:37.4]} 55...
Kf5 {[%clk 0:01:51.9]} 56. Rd8 {[%clk 0:00:35.7]} 56... Rxf4+ {[%clk 0:01:52.4]}
57. Kg3 {[%clk 0:00:35.9]} 57... Rg4+ {[%clk 0:01:51.4]} 58. Kf3 {[%clk
0:00:36.5]} 58... Rd4 {[%clk 0:01:51.7]} 59. Rh8 {[%clk 0:00:36]} 59... Kg5
{[%clk 0:01:49.8]} 60. Rd8 {[%clk 0:00:35.8]} 60... Kh4 {[%clk 0:01:48.5]} 61.
Ke3 {[%clk 0:00:35.2]} 61... Rd1 {[%clk 0:01:46.7]} 62. d6 {[%clk 0:00:36.5]}
62... Kg5 {[%clk 0:01:45.4]} 63. Ke4 {[%clk 0:00:34.2]} 63... Kg6 {[%clk
0:01:38.3]} 64. d7 {[%clk 0:00:33.9]} 64... Kh7 {[%clk 0:01:23.7]} 65. Rf8
{[%clk 0:00:31.6]} 65... Rxd7 {[%clk 0:01:24.2]} 66. Rxf6 {[%clk 0:00:32.5]}
66... Rd2 {[%clk 0:01:25.9]} 67. h3 {[%clk 0:00:32.9]} 67... Rh2 {[%clk
0:01:26.6]} 68. Rf3 {[%clk 0:00:32.9]} 68... Kg6 {[%clk 0:01:27.4]} 69. Kf4
{[%clk 0:00:34]} 69... Ra2 {[%clk 0:01:28.2]} 70. Rg3+ {[%clk 0:00:34.3]} 70...
Kf6 {[%clk 0:01:29.3]} 71. Rd3 {[%clk 0:00:32.6]} 71... Ra4+ {[%clk 0:01:30.2]}
72. Kg3 {[%clk 0:00:33.7]} 72... h4+ {[%clk 0:01:30.2]} 73. Kf3 {[%clk
0:00:33.7]} 73... Ke5 {[%clk 0:01:31.8]} 74. Rb3 {[%clk 0:00:34.1]} 74... Rf4+
{[%clk 0:01:31.7]} 75. Ke3 {[%clk 0:00:35.4]} 75... Rf1 {[%clk 0:01:32.3]} 76.
Rb5+ {[%clk 0:00:35.8]} 76... Kf6 {[%clk 0:01:33.6]} 77. Rh5 {[%clk 0:00:36.7]}
77... Ra1 {[%clk 0:01:33.8]} 78. Rxh4 {[%clk 0:00:37.5]} 78... Ra3+ {[%clk
0:01:35.7]} 79. Kf2 {[%clk 0:00:38.7]} 79... Kg7 {[%clk 0:01:36.9]} 80. Rg4+
{[%clk 0:00:39.3]} 80... Kh8 {[%clk 0:01:38.3]} 81. Kg2 {[%clk 0:00:40.9]} 81...
Ra7 {[%clk 0:01:39.2]} 82. Kg3 {[%clk 0:00:41.5]} 82... Rh7 {[%clk 0:01:40.7]}
83. Rh4 {[%clk 0:00:42.6]} 83... Kg7 {[%clk 0:01:41.7]} 84. Rxh7+ {[%clk
0:00:43]} 84... Kxh7 {[%clk 0:01:43.6]} 85. Kg4 {[%clk 0:00:40.1]} 85... Kh6
{[%clk 0:00:43.6]} 86. h4 {[%clk 0:00:39.6]} 86... Kg6 {[%clk 0:00:42.2]} 87.
h5+ {[%clk 0:00:40.4]} 87... Kh6 {[%clk 0:00:44.1]} 88. Kh4 {[%clk 0:00:40.9]}
88... Kh7 {[%clk 0:00:46]} 89. Kg5 {[%clk 0:00:42.8]} 89... Kg7 {[%clk
0:00:47.9]} 90. h6+ {[%clk 0:00:44.7]} 90... Kh7 {[%clk 0:00:49.8]} 91. Kh5
{[%clk 0:00:46.2]} 91... Kh8 {[%clk 0:00:40.8]} 92. Kg6 {[%clk 0:00:45]} 92...
Kg8 {[%clk 0:00:23.4]} 93. h7+ {[%clk 0:00:44.7]} 93... Kh8 {[%clk 0:00:08.6]}
94. Kh6 {[%clk 0:00:04.8]} 1/2-1/2